[Event "Titled Tuesday Blitz July 18 Early 2023"]
[White "Sargsyan, Anna M."]
[Black "Okike, David"]
[WhiteFideId "13308130"]
[BlackFideId "8500134"]
[WhiteElo "2581"]
[BlackElo "2353"]
[Result "1-0"]
[Round "8"]
[TimeControl "180+2"]
[Date "2023.07.18"]
[WhiteClock "0:00:03"]
[BlackClock "0:00:00"]
[Board "83"]

1. d4 {[%clk 0:02:56]}  Nf6 {[%clk 0:02:59]} 2. c4 {[%clk 0:02:56]}  e6 {[%clk 0:02:59]} 3. Nf3 {[%clk 0:02:56]}  Bb4+ {[%clk 0:02:59]} 4. Bd2 {[%clk 0:02:55]}  a5 {[%clk 0:02:59]} 5. g3 {[%clk 0:02:55]}  b6 {[%clk 0:02:59]} 6. Bg2 {[%clk 0:02:55]}  Ba6 {[%clk 0:02:59]} 7. Qc2 {[%clk 0:02:55]}  c6 {[%clk 0:02:59]} 8. O-O {[%clk 0:02:56]}  O-O {[%clk 0:02:59]} 9. Bg5 {[%clk 0:02:55]}  Be7 {[%clk 0:02:57]} 10. e4 {[%clk 0:02:54]}  d5 {[%clk 0:02:53]} 11. e5 {[%clk 0:02:47]}  Nfd7 {[%clk 0:02:42]} 12. Bxe7 {[%clk 0:02:48]}  Qxe7 {[%clk 0:02:42]} 13. b3 {[%clk 0:02:46]}  Re8 {[%clk 0:02:40]} 14. Nbd2 {[%clk 0:02:47]}  Nf8 {[%clk 0:02:40]} 15. Rfe1 {[%clk 0:02:44]}  Nbd7 {[%clk 0:02:39]} 16. Rac1 {[%clk 0:02:42]}  Rac8 {[%clk 0:02:38]} 17. Qb2 {[%clk 0:02:42]}  Red8 {[%clk 0:02:33]} 18. h4 {[%clk 0:02:42]}  h6 {[%clk 0:02:33]} 19. Nh2 {[%clk 0:02:38]}  Nb8 {[%clk 0:02:22]} 20. Nhf1 {[%clk 0:02:37]}  Rd7 {[%clk 0:02:19]} 21. Ne3 {[%clk 0:02:35]}  Qd8 {[%clk 0:02:18]} 22. c5 {[%clk 0:02:32]}  bxc5 {[%clk 0:02:13]} 23. Rxc5 {[%clk 0:02:32]}  Bd3 {[%clk 0:02:13]} 24. Qc3 {[%clk 0:02:29]}  Bb5 {[%clk 0:02:09]} 25. a4 {[%clk 0:02:28]}  Na6 {[%clk 0:02:02]} 26. axb5 {[%clk 0:02:27]}  Nxc5 {[%clk 0:02:03]} 27. Qxc5 {[%clk 0:02:27]}  cxb5 {[%clk 0:02:02]} 28. Qxb5 {[%clk 0:02:28]}  Rb8 {[%clk 0:02:02]} 29. Qd3 {[%clk 0:02:23]}  Rc7 {[%clk 0:02:00]} 30. Ra1 {[%clk 0:02:17]}  Rc6 {[%clk 0:01:56]} 31. Ng4 {[%clk 0:02:10]}  Qc7 {[%clk 0:01:55]} 32. Bf1 {[%clk 0:02:09]}  Rc1 {[%clk 0:01:51]} 33. Rxc1 {[%clk 0:02:07]}  Qxc1 {[%clk 0:01:51]} 34. Ne3 {[%clk 0:02:06]}  Rc8 {[%clk 0:01:49]} 35. Qe2 {[%clk 0:02:01]}  Rc3 {[%clk 0:01:45]} 36. Qd1 {[%clk 0:01:56]}  Qxd1 {[%clk 0:01:42]} 37. Nxd1 {[%clk 0:01:57]}  Rc2 {[%clk 0:01:43]} 38. Nf3 {[%clk 0:01:53]}  Nd7 {[%clk 0:01:37]} 39. Kg2 {[%clk 0:01:43]}  Kf8 {[%clk 0:01:36]} 40. Bd3 {[%clk 0:01:41]}  Rc1 {[%clk 0:01:35]} 41. Nb2 {[%clk 0:01:34]}  Rc3 {[%clk 0:01:28]} 42. Nd2 {[%clk 0:01:30]}  Ke7 {[%clk 0:01:26]} 43. Kf1 {[%clk 0:01:28]}  f6 {[%clk 0:01:25]} 44. f4 {[%clk 0:01:26]}  Nb8 {[%clk 0:01:18]} 45. Ke2 {[%clk 0:01:20]}  Nc6 {[%clk 0:01:18]} 46. Ke3 {[%clk 0:01:20]}  Nb4 {[%clk 0:01:18]} 47. Ke2 {[%clk 0:01:14]}  g5 {[%clk 0:01:11]} 48. hxg5 {[%clk 0:01:13]}  fxg5 {[%clk 0:01:09]} 49. fxg5 {[%clk 0:01:13]}  hxg5 {[%clk 0:01:10]} 50. g4 {[%clk 0:01:14]}  Nc6 {[%clk 0:01:09]} 51. Nd1 {[%clk 0:00:59]}  Rc1 {[%clk 0:01:07]} 52. Nf3 {[%clk 0:00:59]}  Ra1 {[%clk 0:01:03]} 53. Nf2 {[%clk 0:00:52]}  Ra2+ {[%clk 0:00:57]} 54. Ke3 {[%clk 0:00:51]}  Rb2 {[%clk 0:00:58]} 55. Nd2 {[%clk 0:00:45]}  Nb4 {[%clk 0:00:54]} 56. Nd1 {[%clk 0:00:44]}  Ra2 {[%clk 0:00:54]} 57. Bb5 {[%clk 0:00:39]}  Ra1 {[%clk 0:00:52]} 58. Nf2 {[%clk 0:00:34]}  Nc2+ {[%clk 0:00:49]} 59. Kd3 {[%clk 0:00:33]}  Ne1+ {[%clk 0:00:49]} 60. Ke2 {[%clk 0:00:32]}  Nc2 {[%clk 0:00:49]} 61. Nf3 {[%clk 0:00:33]}  Ra3 {[%clk 0:00:47]} 62. Ba4 {[%clk 0:00:33]}  Ra2 {[%clk 0:00:47]} 63. Kf1 {[%clk 0:00:18]}  Ra1+ {[%clk 0:00:41]} 64. Kg2 {[%clk 0:00:18]}  Ne1+ {[%clk 0:00:38]} 65. Nxe1 {[%clk 0:00:15]}  Rxe1 {[%clk 0:00:39]} 66. Kf3 {[%clk 0:00:16]}  Kf7 {[%clk 0:00:36]} 67. Bd7 {[%clk 0:00:09]}  Rb1 {[%clk 0:00:32]} 68. Ba4 {[%clk 0:00:09]}  Kg6 {[%clk 0:00:32]} 69. Nd3 {[%clk 0:00:06]}  Kf7 {[%clk 0:00:30]} 70. Nc5 {[%clk 0:00:06]}  Rd1 {[%clk 0:00:29]} 71. Bd7 {[%clk 0:00:04]}  Rxd4 {[%clk 0:00:29]} 72. Bxe6+ {[%clk 0:00:05]}  Ke7 {[%clk 0:00:28]} 73. Bf5 {[%clk 0:00:04]}  Rb4 {[%clk 0:00:28]} 74. Bc2 {[%clk 0:00:04]}  Rd4 {[%clk 0:00:24]} 75. Nd3 {[%clk 0:00:02]}  Ke6 {[%clk 0:00:23]} 76. Kg3 {[%clk 0:00:01]}  Ke7 {[%clk 0:00:21]} 77. Kf3 {[%clk 0:00:01]}  Ke6 {[%clk 0:00:21]} 78. Kg3 {[%clk 0:00:02]}  Ke7 {[%clk 0:00:21]} 79. Nf2 {[%clk 0:00:02]}  Ke6 {[%clk 0:00:20]} 80. Bf5+ {[%clk 0:00:02]}  Kxe5 {[%clk 0:00:19]} 81. Kf3 {[%clk 0:00:03]}  Rd2 {[%clk 0:00:17]} 82. Ke3 {[%clk 0:00:03]}  Ra2 {[%clk 0:00:15]} 83. Nd3+ {[%clk 0:00:04]}  Kd6 {[%clk 0:00:15]} 84. Kd4 {[%clk 0:00:04]}  Rg2 {[%clk 0:00:14]} 85. Kc3 {[%clk 0:00:04]}  Rg3 {[%clk 0:00:11]} 86. Kd4 {[%clk 0:00:04]}  Rf3 {[%clk 0:00:10]} 87. Ne1 {[%clk 0:00:04]}  Rf4+ {[%clk 0:00:10]} 88. Ke3 {[%clk 0:00:04]}  Rb4 {[%clk 0:00:10]} 89. Nc2 {[%clk 0:00:02]}  Rxb3+ {[%clk 0:00:10]} 90. Kd2 {[%clk 0:00:03]}  Rg3 {[%clk 0:00:09]} 91. Nd4 {[%clk 0:00:03]}  Ke5 {[%clk 0:00:09]} 92. Ne2 {[%clk 0:00:03]}  Rg2 {[%clk 0:00:08]} 93. Ke3 {[%clk 0:00:03]}  Rh2 {[%clk 0:00:03]} 94. Kf3 {[%clk 0:00:03]}  Rh3+ {[%clk 0:00:03]} 95. Kf2 {[%clk 0:00:04]}  Ra3 {[%clk 0:00:03]} 96. Nc1 {[%clk 0:00:03]}  Kd4 {[%clk 0:00:00]} 97. Ke2 {[%clk 0:00:03]} 1-0


[Site "https://www.chess.com"]

[Event "Titled Tuesday Blitz July 18 Early 2023"]
[White "Zavgorodniy, Sergiy"]
[Black "Da Silva Junior, Sediney Mari"]
[WhiteFideId "14110148"]
[BlackFideId "2132079"]
[WhiteElo "2580"]
[BlackElo "2226"]
[Result "1-0"]
[Round "8"]
[TimeControl "180+2"]
[Date "2023.07.18"]
[WhiteClock "0:00:44"]
[BlackClock "0:01:52"]
[Board "84"]

1. e4 {[%clk 0:03:00]}  e6 {[%clk 0:02:59]} 2. d3 {[%clk 0:02:59]}  d5 {[%clk 0:02:59]} 3. Nd2 {[%clk 0:02:59]}  Nf6 {[%clk 0:02:58]} 4. Ngf3 {[%clk 0:02:58]}  c5 {[%clk 0:02:58]} 5. g3 {[%clk 0:02:57]}  Nc6 {[%clk 0:02:59]} 6. Bg2 {[%clk 0:02:56]}  b6 {[%clk 0:02:59]} 7. O-O {[%clk 0:02:55]}  Bb7 {[%clk 0:03:00]} 8. Qe2 {[%clk 0:02:53]}  Qc7 {[%clk 0:03:00]} 9. Re1 {[%clk 0:02:47]}  O-O-O {[%clk 0:02:59]} 10. a4 {[%clk 0:02:19]}  h6 {[%clk 0:02:57]} 11. Nb3 {[%clk 0:02:10]}  dxe4 {[%clk 0:02:50]} 12. dxe4 {[%clk 0:02:09]}  Nd4 {[%clk 0:02:44]} 13. Nfxd4 {[%clk 0:02:05]}  cxd4 {[%clk 0:02:44]} 14. a5 {[%clk 0:01:59]}  g5 {[%clk 0:02:43]} 15. axb6 {[%clk 0:01:55]}  axb6 {[%clk 0:02:43]} 16. e5 {[%clk 0:01:42]}  Bxg2 {[%clk 0:02:43]} 17. Kxg2 {[%clk 0:01:41]}  Qb7+ {[%clk 0:02:43]} 18. Kg1 {[%clk 0:01:40]}  Ne8 {[%clk 0:02:41]} 19. Ra4 {[%clk 0:01:27]}  Bc5 {[%clk 0:02:39]} 20. Bd2 {[%clk 0:01:24]}  Nc7 {[%clk 0:02:39]} 21. Rea1 {[%clk 0:01:23]}  Kd7 {[%clk 0:02:37]} 22. Ra7 {[%clk 0:01:21]}  Qc6 {[%clk 0:02:36]} 23. Nxc5+ {[%clk 0:01:11]}  Qxc5 {[%clk 0:02:33]} 24. Qd3 {[%clk 0:00:59]}  Ra8 {[%clk 0:02:31]} 25. Be3 {[%clk 0:00:53]}  Rxa7 {[%clk 0:02:19]} 26. Rxa7 {[%clk 0:00:54]}  Qd5 {[%clk 0:01:57]} 27. Bxd4 {[%clk 0:00:51]}  Rc8 {[%clk 0:01:53]} 28. Bxb6 {[%clk 0:00:47]}  Qxd3 {[%clk 0:01:53]} 29. cxd3 {[%clk 0:00:48]}  Kc6 {[%clk 0:01:52]} 30. Rxc7+ {[%clk 0:00:47]}  Rxc7 {[%clk 0:01:53]} 31. Bxc7 {[%clk 0:00:48]}  Kxc7 {[%clk 0:01:54]} 32. f4 {[%clk 0:00:44]}  Kc6 {[%clk 0:01:53]} 33. fxg5 {[%clk 0:00:43]}  hxg5 {[%clk 0:01:54]} 34. h4 {[%clk 0:00:44]}  gxh4 {[%clk 0:01:54]} 35. gxh4 {[%clk 0:00:44]}  Kd5 {[%clk 0:01:55]} 36. h5 {[%clk 0:00:43]}  Kxe5 {[%clk 0:01:52]} 37. b4 {[%clk 0:00:44]} 1-0


[Site "https://www.chess.com"]

[Event "Titled Tuesday Blitz July 18 Early 2023"]
[White "Molina, Roberto Junio Brito"]
[Black "lgabi"]
[WhiteFideId "2109450"]
[WhiteElo "2865"]
[BlackElo "2329"]
[Result "1/2-1/2"]
[Round "8"]
[TimeControl "180+2"]
[Date "2023.07.18"]
[WhiteClock "0:00:14"]
[BlackClock "0:00:09"]
[Board "85"]

1. Na3 {[%clk 0:02:59]}  d5 {[%clk 0:02:56]} 2. d4 {[%clk 0:02:59]}  Nf6 {[%clk 0:02:54]} 3. Bf4 {[%clk 0:02:58]}  a6 {[%clk 0:02:53]} 4. c3 {[%clk 0:02:58]}  Bf5 {[%clk 0:02:52]} 5. e3 {[%clk 0:02:56]}  e6 {[%clk 0:02:52]} 6. Nc2 {[%clk 0:02:56]}  Bd6 {[%clk 0:02:47]} 7. Bd3 {[%clk 0:02:54]}  O-O {[%clk 0:02:39]} 8. Nf3 {[%clk 0:02:52]}  Ne4 {[%clk 0:02:19]} 9. O-O {[%clk 0:02:47]}  c5 {[%clk 0:02:10]} 10. Bxd6 {[%clk 0:02:45]}  Qxd6 {[%clk 0:02:09]} 11. Ne5 {[%clk 0:02:46]}  Nc6 {[%clk 0:02:08]} 12. Nxc6 {[%clk 0:02:37]}  bxc6 {[%clk 0:02:06]} 13. f3 {[%clk 0:02:32]}  Nf6 {[%clk 0:02:06]} 14. Bxf5 {[%clk 0:02:32]}  exf5 {[%clk 0:02:06]} 15. Qd3 {[%clk 0:02:32]}  g6 {[%clk 0:02:04]} 16. Rae1 {[%clk 0:02:28]}  Rfe8 {[%clk 0:02:02]} 17. dxc5 {[%clk 0:02:17]}  Qxc5 {[%clk 0:02:01]} 18. Qd4 {[%clk 0:02:17]}  Qe7 {[%clk 0:01:32]} 19. Re2 {[%clk 0:02:13]}  Rab8 {[%clk 0:01:29]} 20. b3 {[%clk 0:02:13]}  c5 {[%clk 0:01:24]} 21. Qd2 {[%clk 0:02:11]}  Rbd8 {[%clk 0:01:23]} 22. Rd1 {[%clk 0:02:07]}  h5 {[%clk 0:01:14]} 23. Qe1 {[%clk 0:01:56]}  Qe5 {[%clk 0:01:12]} 24. h3 {[%clk 0:01:38]}  Kg7 {[%clk 0:01:10]} 25. Rd3 {[%clk 0:01:33]}  Rd7 {[%clk 0:00:57]} 26. Red2 {[%clk 0:01:28]}  Rde7 {[%clk 0:00:49]} 27. Qf2 {[%clk 0:01:27]}  f4 {[%clk 0:00:48]} 28. exf4 {[%clk 0:01:17]}  Qxf4 {[%clk 0:00:49]} 29. g3 {[%clk 0:01:17]}  Qe5 {[%clk 0:00:35]} 30. h4 {[%clk 0:01:15]}  c4 {[%clk 0:00:34]} 31. Re3 {[%clk 0:01:12]}  Qf5 {[%clk 0:00:32]} 32. Rxe7 {[%clk 0:01:10]}  Rxe7 {[%clk 0:00:33]} 33. b4 {[%clk 0:01:01]}  g5 {[%clk 0:00:29]} 34. hxg5 {[%clk 0:00:51]}  Qxg5 {[%clk 0:00:30]} 35. Kh2 {[%clk 0:00:49]}  Qg6 {[%clk 0:00:28]} 36. Nd4 {[%clk 0:00:48]}  Re5 {[%clk 0:00:22]} 37. Re2 {[%clk 0:00:41]}  Re4 {[%clk 0:00:18]} 38. Kg2 {[%clk 0:00:35]}  Rxe2 {[%clk 0:00:16]} 39. Nxe2 {[%clk 0:00:36]}  h4 {[%clk 0:00:15]} 40. Nf4 {[%clk 0:00:36]}  Qf5 {[%clk 0:00:15]} 41. Qd4 {[%clk 0:00:29]}  hxg3 {[%clk 0:00:15]} 42. Kxg3 {[%clk 0:00:30]}  Kh7 {[%clk 0:00:15]} 43. Qe3 {[%clk 0:00:25]}  Qg5+ {[%clk 0:00:14]} 44. Kf2 {[%clk 0:00:26]}  Nh5 {[%clk 0:00:11]} 45. Ne2 {[%clk 0:00:21]}  Qh4+ {[%clk 0:00:11]} 46. Kf1 {[%clk 0:00:21]}  Qh1+ {[%clk 0:00:11]} 47. Kf2 {[%clk 0:00:20]}  Qh2+ {[%clk 0:00:11]} 48. Ke1 {[%clk 0:00:19]}  Qh1+ {[%clk 0:00:08]} 49. Kd2 {[%clk 0:00:19]}  Qb1 {[%clk 0:00:09]} 50. Nc1 {[%clk 0:00:13]}  Qf5 {[%clk 0:00:09]} 51. Ne2 {[%clk 0:00:12]}  Qb1 {[%clk 0:00:08]} 52. Qe5 {[%clk 0:00:09]}  Qd3+ {[%clk 0:00:08]} 53. Ke1 {[%clk 0:00:09]}  Ng7 {[%clk 0:00:05]} 54. Kf2 {[%clk 0:00:04]}  Ne6 {[%clk 0:00:04]} 55. Qf6 {[%clk 0:00:03]}  Qg6 {[%clk 0:00:03]} 56. Qxg6+ {[%clk 0:00:03]}  Kxg6 {[%clk 0:00:04]} 57. Ke3 {[%clk 0:00:03]}  Kf5 {[%clk 0:00:05]} 58. a4 {[%clk 0:00:03]}  Ke5 {[%clk 0:00:05]} 59. f4+ {[%clk 0:00:02]}  Kd6 {[%clk 0:00:06]} 60. Nd4 {[%clk 0:00:03]}  Nc7 {[%clk 0:00:05]} 61. Nf5+ {[%clk 0:00:03]}  Ke6 {[%clk 0:00:05]} 62. Nd4+ {[%clk 0:00:04]}  Kd6 {[%clk 0:00:06]} 63. Kf3 {[%clk 0:00:05]}  f6 {[%clk 0:00:05]} 64. Kg4 {[%clk 0:00:05]}  Ke7 {[%clk 0:00:05]} 65. Kf5 {[%clk 0:00:06]}  Ne8 {[%clk 0:00:05]} 66. Nc6+ {[%clk 0:00:06]}  Kd6 {[%clk 0:00:06]} 67. Nd4 {[%clk 0:00:07]}  Ke7 {[%clk 0:00:06]} 68. Kg6 {[%clk 0:00:07]}  Nd6 {[%clk 0:00:06]} 69. Nf5+ {[%clk 0:00:08]}  Nxf5 {[%clk 0:00:05]} 70. Kxf5 {[%clk 0:00:09]}  Kf7 {[%clk 0:00:06]} 71. Kg4 {[%clk 0:00:09]}  d4 {[%clk 0:00:05]} 72. Kf3 {[%clk 0:00:08]}  d3 {[%clk 0:00:05]} 73. Ke3 {[%clk 0:00:09]}  Ke6 {[%clk 0:00:06]} 74. Kd2 {[%clk 0:00:09]}  Kf5 {[%clk 0:00:05]} 75. Ke3 {[%clk 0:00:10]}  Ke6 {[%clk 0:00:05]} 76. Kf3 {[%clk 0:00:10]}  Kd5 {[%clk 0:00:06]} 77. Ke3 {[%clk 0:00:10]}  f5 {[%clk 0:00:05]} 78. Kf3 {[%clk 0:00:11]}  Kc6 {[%clk 0:00:05]} 79. Ke3 {[%clk 0:00:11]}  Kb6 {[%clk 0:00:05]} 80. Kd2 {[%clk 0:00:11]}  Kc6 {[%clk 0:00:06]} 81. Ke3 {[%clk 0:00:12]}  Kb6 {[%clk 0:00:06]} 82. Kf3 {[%clk 0:00:12]}  Kc6 {[%clk 0:00:07]} 83. Kf2 {[%clk 0:00:13]}  Kb6 {[%clk 0:00:07]} 84. Ke3 {[%clk 0:00:14]}  Kc6 {[%clk 0:00:07]} 85. Kd2 {[%clk 0:00:14]}  Kb6 {[%clk 0:00:08]} 86. Ke3 {[%clk 0:00:14]}  Kc6 {[%clk 0:00:08]} 87. Kd2 {[%clk 0:00:14]}  Kd5 {[%clk 0:00:09]} 88. Ke3 {[%clk 0:00:14]}  Kc6 {[%clk 0:00:09]} 1/2-1/2


[Site "https://www.chess.com"]

[Event "Titled Tuesday Blitz July 18 Early 2023"]
[White "Spata, German"]
[Black "vishwa_vijeta"]
[WhiteFideId "113026"]
[WhiteElo "2643"]
[BlackElo "2461"]
[Result "1/2-1/2"]
[Round "8"]
[TimeControl "180+2"]
[Date "2023.07.18"]
[WhiteClock "0:00:07"]
[BlackClock "0:00:08"]
[Board "90"]

1. Nf3 {[%clk 0:02:51]}  c5 {[%clk 0:02:58]} 2. c4 {[%clk 0:02:49]}  Nc6 {[%clk 0:02:53]} 3. g3 {[%clk 0:02:50]}  g6 {[%clk 0:02:52]} 4. Bg2 {[%clk 0:02:47]}  e5 {[%clk 0:02:49]} 5. O-O {[%clk 0:02:47]}  Bg7 {[%clk 0:02:49]} 6. Nc3 {[%clk 0:02:47]}  Nge7 {[%clk 0:02:50]} 7. Ne1 {[%clk 0:02:48]}  O-O {[%clk 0:02:48]} 8. Nc2 {[%clk 0:02:48]}  d6 {[%clk 0:02:48]} 9. Ne3 {[%clk 0:02:48]}  f5 {[%clk 0:02:48]} 10. d3 {[%clk 0:02:48]}  Be6 {[%clk 0:02:44]} 11. Rb1 {[%clk 0:02:48]}  f4 {[%clk 0:02:44]} 12. Ned5 {[%clk 0:02:48]}  Qd7 {[%clk 0:02:44]} 13. a3 {[%clk 0:02:48]}  Bh3 {[%clk 0:02:41]} 14. b4 {[%clk 0:02:45]}  Bxg2 {[%clk 0:02:26]} 15. Kxg2 {[%clk 0:02:45]}  b6 {[%clk 0:02:25]} 16. Qa4 {[%clk 0:02:42]}  Rad8 {[%clk 0:02:18]} 17. Nxe7+ {[%clk 0:02:39]}  Nxe7 {[%clk 0:02:18]} 18. Qxd7 {[%clk 0:02:39]}  Rxd7 {[%clk 0:02:19]} 19. Bd2 {[%clk 0:02:32]}  Nf5 {[%clk 0:02:12]} 20. e3 {[%clk 0:02:15]}  Rdf7 {[%clk 0:02:01]} 21. Nd5 {[%clk 0:02:01]}  fxe3 {[%clk 0:01:52]} 22. fxe3 {[%clk 0:01:59]}  Bh6 {[%clk 0:01:52]} 23. Kh3 {[%clk 0:01:28]}  Bg5 {[%clk 0:01:32]} 24. Rf2 {[%clk 0:01:21]}  Ne7 {[%clk 0:01:24]} 25. Nxe7+ {[%clk 0:01:17]}  Bxe7 {[%clk 0:01:22]} 26. Rxf7 {[%clk 0:01:15]}  Rxf7 {[%clk 0:01:23]} 27. Kg2 {[%clk 0:01:14]}  Bf8 {[%clk 0:01:21]} 28. e4 {[%clk 0:01:13]}  h6 {[%clk 0:01:13]} 29. a4 {[%clk 0:01:12]}  Rb7 {[%clk 0:01:05]} 30. Kf3 {[%clk 0:01:04]}  h5 {[%clk 0:01:02]} 31. Ke2 {[%clk 0:01:02]}  Be7 {[%clk 0:00:59]} 32. Bc3 {[%clk 0:00:56]}  Rc7 {[%clk 0:00:51]} 33. bxc5 {[%clk 0:00:48]}  bxc5 {[%clk 0:00:43]} 34. a5 {[%clk 0:00:43]}  Kf7 {[%clk 0:00:34]} 35. Rb8 {[%clk 0:00:43]}  Rc6 {[%clk 0:00:28]} 36. Rb7 {[%clk 0:00:40]}  Ra6 {[%clk 0:00:28]} 37. Bd2 {[%clk 0:00:37]}  Ke6 {[%clk 0:00:25]} 38. Kd1 {[%clk 0:00:26]}  Bd8 {[%clk 0:00:24]} 39. Rb5 {[%clk 0:00:24]}  Bc7 {[%clk 0:00:21]} 40. Kc2 {[%clk 0:00:22]}  Bd8 {[%clk 0:00:21]} 41. Kb3 {[%clk 0:00:22]}  Rc6 {[%clk 0:00:19]} 42. Ka4 {[%clk 0:00:22]}  Rc7 {[%clk 0:00:19]} 43. Rb8 {[%clk 0:00:19]}  Kd7 {[%clk 0:00:18]} 44. a6 {[%clk 0:00:17]}  Rc6 {[%clk 0:00:15]} 45. Kb5 {[%clk 0:00:16]}  Rb6+ {[%clk 0:00:14]} 46. Rxb6 {[%clk 0:00:16]}  Bxb6 {[%clk 0:00:15]} 47. Bg5 {[%clk 0:00:13]}  Bc7 {[%clk 0:00:11]} 48. Bf6 {[%clk 0:00:13]}  Bb6 {[%clk 0:00:11]} 49. h3 {[%clk 0:00:12]}  Bc7 {[%clk 0:00:11]} 50. Bg5 {[%clk 0:00:11]}  Bb6 {[%clk 0:00:11]} 51. Bd2 {[%clk 0:00:12]}  Bc7 {[%clk 0:00:12]} 52. Be1 {[%clk 0:00:10]}  Bb6 {[%clk 0:00:12]} 53. Ba5 {[%clk 0:00:08]}  Bxa5 {[%clk 0:00:12]} 54. Kxa5 {[%clk 0:00:09]}  Kc6 {[%clk 0:00:13]} 55. g4 {[%clk 0:00:05]}  hxg4 {[%clk 0:00:12]} 56. hxg4 {[%clk 0:00:05]}  g5 {[%clk 0:00:13]} 57. Ka4 {[%clk 0:00:06]}  Kb6 {[%clk 0:00:13]} 58. Kb3 {[%clk 0:00:06]}  Kxa6 {[%clk 0:00:13]} 59. Ka3 {[%clk 0:00:06]}  Ka5 {[%clk 0:00:13]} 60. Kb3 {[%clk 0:00:07]}  Kb6 {[%clk 0:00:11]} 61. Ka3 {[%clk 0:00:05]}  Kb7 {[%clk 0:00:09]} 62. Ka4 {[%clk 0:00:05]}  Kb6 {[%clk 0:00:08]} 63. Ka3 {[%clk 0:00:06]}  Ka5 {[%clk 0:00:09]} 64. Kb3 {[%clk 0:00:06]}  a6 {[%clk 0:00:04]} 65. Ka3 {[%clk 0:00:06]}  Kb6 {[%clk 0:00:05]} 66. Ka4 {[%clk 0:00:07]}  a5 {[%clk 0:00:05]} 67. Kb3 {[%clk 0:00:05]}  Ka6 {[%clk 0:00:06]} 68. Ka4 {[%clk 0:00:06]}  Kb6 {[%clk 0:00:07]} 69. Kb3 {[%clk 0:00:06]}  Ka6 {[%clk 0:00:08]} 70. Ka4 {[%clk 0:00:07]}  Kb6 {[%clk 0:00:08]} 1/2-1/2


[Site "https://www.chess.com"]

[Event "Titled Tuesday Blitz July 18 Early 2023"]
[White "Shukhman, Anna"]
[Black "Begunov, Konstantin"]
[WhiteFideId "54180058"]
[BlackFideId "4118510"]
[WhiteElo "2591"]
[BlackElo "2459"]
[Result "1/2-1/2"]
[Round "8"]
[TimeControl "180+2"]
[Date "2023.07.18"]
[WhiteClock "0:01:27"]
[BlackClock "0:00:11"]
[Board "91"]

1. e4 {[%clk 0:03:00]}  c5 {[%clk 0:02:58]} 2. Nf3 {[%clk 0:03:00]}  d6 {[%clk 0:02:58]} 3. d4 {[%clk 0:02:59]}  cxd4 {[%clk 0:02:59]} 4. Nxd4 {[%clk 0:03:00]}  Nf6 {[%clk 0:02:59]} 5. Nc3 {[%clk 0:03:01]}  a6 {[%clk 0:03:00]} 6. Qd3 {[%clk 0:03:01]}  e5 {[%clk 0:02:59]} 7. Nf5 {[%clk 0:03:01]}  Bxf5 {[%clk 0:02:47]} 8. exf5 {[%clk 0:03:02]}  d5 {[%clk 0:02:45]} 9. Bg5 {[%clk 0:03:01]}  d4 {[%clk 0:02:41]} 10. Ne4 {[%clk 0:02:51]}  Bb4+ {[%clk 0:01:48]} 11. c3 {[%clk 0:02:50]}  dxc3 {[%clk 0:01:48]} 12. Qxd8+ {[%clk 0:02:49]}  Kxd8 {[%clk 0:01:49]} 13. O-O-O+ {[%clk 0:02:40]}  Kc7 {[%clk 0:00:46]} 14. Bxf6 {[%clk 0:02:23]}  cxb2+ {[%clk 0:00:43]} 15. Kxb2 {[%clk 0:02:23]}  gxf6 {[%clk 0:00:44]} 16. Nxf6 {[%clk 0:02:23]}  Bc5 {[%clk 0:00:27]} 17. Rc1 {[%clk 0:02:11]}  b6 {[%clk 0:00:26]} 18. Ne4 {[%clk 0:02:10]}  Nd7 {[%clk 0:00:25]} 19. Bc4 {[%clk 0:02:08]}  f6 {[%clk 0:00:20]} 20. Be6 {[%clk 0:02:07]}  Rac8 {[%clk 0:00:19]} 21. Rhd1 {[%clk 0:02:05]}  Rhd8 {[%clk 0:00:20]} 22. Nxc5 {[%clk 0:02:00]}  bxc5 {[%clk 0:00:18]} 23. Rxd7+ {[%clk 0:01:50]}  Rxd7 {[%clk 0:00:18]} 24. Rxc5+ {[%clk 0:01:50]}  Kd8 {[%clk 0:00:14]} 25. Rxc8+ {[%clk 0:01:49]}  Kxc8 {[%clk 0:00:15]} 26. Kc3 {[%clk 0:01:43]}  Kc7 {[%clk 0:00:15]} 27. Bxd7 {[%clk 0:01:42]}  Kxd7 {[%clk 0:00:16]} 28. Kc4 {[%clk 0:01:40]}  Kc6 {[%clk 0:00:16]} 29. g3 {[%clk 0:01:40]}  Kd6 {[%clk 0:00:16]} 30. f4 {[%clk 0:01:39]}  exf4 {[%clk 0:00:15]} 31. gxf4 {[%clk 0:01:38]}  Kc6 {[%clk 0:00:16]} 32. a4 {[%clk 0:01:31]}  h6 {[%clk 0:00:11]} 33. Kd4 {[%clk 0:01:29]}  Kd6 {[%clk 0:00:11]} 34. h4 {[%clk 0:01:27]}  h5 {[%clk 0:00:10]} 35. Kc4 {[%clk 0:01:27]}  Kc6 {[%clk 0:00:09]} 36. Kd4 {[%clk 0:01:27]}  Kd6 {[%clk 0:00:10]} 37. a5 {[%clk 0:01:25]}  Kc6 {[%clk 0:00:10]} 38. Kc4 {[%clk 0:01:26]}  Kd6 {[%clk 0:00:11]} 39. Kd4 {[%clk 0:01:26]}  Kc6 {[%clk 0:00:11]} 40. Kc4 {[%clk 0:01:26]}  Kd6 {[%clk 0:00:11]} 41. Kd4 {[%clk 0:01:27]} 1/2-1/2


[Site "https://www.chess.com"]

[Event "Titled Tuesday Blitz July 18 Early 2023"]
[White "Sadykov, Ramil"]
[Black "Zacurdajev, Dmitry"]
[WhiteFideId "24113590"]
[BlackFideId "4196309"]
[WhiteElo "2582"]
[BlackElo "2444"]
[Result "1-0"]
[Round "8"]
[TimeControl "180+2"]
[Date "2023.07.18"]
[WhiteClock "0:00:09"]
[BlackClock "0:00:00"]
[Board "92"]

1. c4 {[%clk 0:02:45]}  Nf6 {[%clk 0:02:59]} 2. Nc3 {[%clk 0:02:44]}  e6 {[%clk 0:02:59]} 3. Nf3 {[%clk 0:02:43]}  d5 {[%clk 0:03:00]} 4. e3 {[%clk 0:02:44]}  Be7 {[%clk 0:03:00]} 5. b3 {[%clk 0:02:44]}  O-O {[%clk 0:03:00]} 6. Bb2 {[%clk 0:02:44]}  c5 {[%clk 0:03:00]} 7. cxd5 {[%clk 0:02:44]}  Nxd5 {[%clk 0:03:01]} 8. Qc2 {[%clk 0:02:39]}  Nc6 {[%clk 0:02:52]} 9. a3 {[%clk 0:02:38]}  Bf6 {[%clk 0:02:47]} 10. h4 {[%clk 0:02:34]}  Nxc3 {[%clk 0:02:46]} 11. Bxc3 {[%clk 0:02:27]}  Bxc3 {[%clk 0:02:46]} 12. dxc3 {[%clk 0:02:27]}  h6 {[%clk 0:02:31]} 13. Bd3 {[%clk 0:02:18]}  e5 {[%clk 0:02:29]} 14. O-O-O {[%clk 0:02:14]}  Qe7 {[%clk 0:02:25]} 15. Kb2 {[%clk 0:02:06]}  a5 {[%clk 0:02:06]} 16. a4 {[%clk 0:01:58]}  Bg4 {[%clk 0:02:04]} 17. Be4 {[%clk 0:01:54]}  c4 {[%clk 0:02:02]} 18. bxc4 {[%clk 0:01:51]}  Rac8 {[%clk 0:01:59]} 19. Qb3 {[%clk 0:01:43]}  Rc7 {[%clk 0:01:41]} 20. Rd2 {[%clk 0:01:22]}  Rfc8 {[%clk 0:01:41]} 21. Bd5 {[%clk 0:01:22]}  Be6 {[%clk 0:01:36]} 22. Rhd1 {[%clk 0:01:18]}  Bd7 {[%clk 0:01:13]} 23. Qa3 {[%clk 0:01:11]}  Qf6 {[%clk 0:01:01]} 24. Rc2 {[%clk 0:00:28]}  Ne7 {[%clk 0:00:40]} 25. Nd2 {[%clk 0:00:26]}  Nxd5 {[%clk 0:00:31]} 26. cxd5 {[%clk 0:00:26]}  Qxf2 {[%clk 0:00:20]} 27. Nc4 {[%clk 0:00:26]}  Qxh4 {[%clk 0:00:19]} 28. Nb6 {[%clk 0:00:20]}  Qg4 {[%clk 0:00:09]} 29. Nxc8 {[%clk 0:00:17]}  Qxd1 {[%clk 0:00:08]} 30. Nb6 {[%clk 0:00:13]}  Qd3 {[%clk 0:00:06]} 31. Qd6 {[%clk 0:00:12]}  Rc4 {[%clk 0:00:01]} 32. Nxc4 {[%clk 0:00:09]}  Qxc4 {[%clk 0:00:00]} 33. Qxd7 {[%clk 0:00:09]} 1-0


[Site "https://www.chess.com"]